fUSD/lending_fUSD_20260114
["ID","MTS","AMOUNT","RATE_DAILY","PERIOD"]
[401727952,1768348869989,513.92,0.00012,2]
[401727965,1768349130192,-172.92349089,0.00012,2]
[401727966,1768349143410,300.000001,0.00027397,120]
[401727972,1768349227089,-167.94021366,0.00012,2]
[401727973,1768349247085,-239.07558142,0.00012,2]
[401727983,1768349321782,-117.82071403,0.00012,2]
[401727984,1768349321801,-298.39964765,0.00012,2]
[401727985,1768349321820,-152.06142284,0.00012017,2]
[401727986,1768349321840,-150.1,0.00012017,2]
[401727987,1768349321859,-150.1,0.00012017,2]
[401727988,1768349321878,-300.0,0.000132,2]
[401727989,1768349321897,-322.10530095,0.000132,2]
[401727990,1768349333314,-613.92403045,0.00013948,2]
[401727991,1768349333342,-500.0,0.00013948,2]
[401727992,1768349333369,-500.0,0.00013948,2]
[401727993,1768349333399,-500.0,0.00013948,2]
[401727994,1768349333426,-500.0,0.00013948,2]
[401727995,1768349333453,-500.0,0.00013948,2]
[401727996,1768349333480,-500.0,0.00013948,2]
[401727997,1768349333508,-500.0,0.00013948,2]
[401727998,1768349333534,-500.0,0.00013948,2]
[401727999,1768349333560,-500.0,0.00013948,2]
[401728000,1768349333587,-500.0,0.00013948,2]
[401728001,1768349333613,-500.0,0.00013948,2]
[401728002,1768349333639,-237.9305333,0.00013948,2]
[401728003,1768349333665,-500.0,0.00013948,2]
[401728004,1768349333691,-500.0,0.00013948,2]
[401728005,1768349333716,-500.0,0.00013948,2]
[401728006,1768349333742,-500.0,0.00013948,2]
[401728007,1768349333767,-41648.14543625,0.00013949,2]
[401728008,1768349337359,598.27460567,0.000132,2]
[401728010,1768349349114,-568.187111,0.00013879,2]
[401728011,1768349349140,-300.0,0.00013947,2]
[401728012,1768349349169,-150.0,0.00013947,2]
[401728013,1768349349195,-500.0,0.00013948,2]
[401728014,1768349349220,-500.0,0.00013948,2]
[401728015,1768349349244,-500.0,0.00013948,2]
[401728016,1768349349269,-500.0,0.00013948,2]
[401728017,1768349349293,-500.0,0.00013948,2]
[401728018,1768349349318,-500.0,0.00013948,2]
[401728019,1768349349343,-500.0,0.00013948,2]
[401728020,1768349349369,-500.0,0.00013948,2]
[401728021,1768349349395,-500.0,0.00013948,2]
[401728022,1768349349420,-500.0,0.00013948,2]
[401728023,1768349349446,-500.0,0.00013948,2]
[401728024,1768349349471,-500.0,0.00013948,2]
[401728025,1768349349494,-500.0,0.00013948,2]
[401728026,1768349349519,-500.0,0.00013948,2]
[401728027,1768349349543,-500.0,0.00013948,2]
[401728028,1768349349568,-500.0,0.00013948,2]
[401728029,1768349349593,-500.0,0.00013948,2]
[401728030,1768349349618,-500.0,0.00013948,2]
[401728031,1768349349643,-500.0,0.00013948,2]
[401728032,1768349349667,-500.0,0.00013948,2]
[401728033,1768349349691,-500.0,0.00013948,2]
[401728034,1768349349715,-500.0,0.00013948,2]
[401728035,1768349349739,-370.32476923,0.00013948,2]
[401728036,1768349349763,-500.0,0.00013948,2]
[401728037,1768349349786,-500.0,0.00013948,2]
[401728038,1768349349808,-500.0,0.00013948,2]
[401728039,1768349349832,-500.0,0.00013948,2]
[401728040,1768349349855,-500.0,0.00013948,2]
[401728041,1768349349881,-500.0,0.00013948,2]
[401728042,1768349349908,-500.0,0.00013948,2]
[401728043,1768349349931,-500.0,0.00013948,2]
[401728044,1768349349954,-247.6848646,0.00013948,2]
[401728045,1768349350115,-252.3151354,0.00013948,2]
[401728046,1768349350140,-500.0,0.00013948,2]
[401728047,1768349350163,-500.0,0.00013948,2]
[401728048,1768349350187,-500.0,0.00013948,2]
[401728049,1768349350211,-500.0,0.00013948,2]
[401728050,1768349350236,-14347.45137943,0.00013949,2]
[401728051,1768349357155,-25014.97789431,0.00013949,2]
[401728052,1768349358140,-168.17380416,0.00013949,2]
[401728053,1768349364209,-16656.37640807,0.00013949,2]
[401728057,1768349431324,-2430.08348929,0.0001385,2]
[401728058,1768349431416,-1579.22064842,0.0001385,2]
[401728059,1768349431427,-3769.81210916,0.0001385,2]
[401728060,1768349431436,-173.59963861,0.0001385,2]
[401728061,1768349431445,-273.97680057,0.00013936,2]
[401728062,1768349431454,-235.84,0.00013939,2]
[401728063,1768349431464,-333.0,0.00013948,2]
[401728064,1768349431473,-500.0,0.00013948,2]
[401728065,1768349431482,-500.0,0.00013948,2]
[401728066,1768349431492,-500.0,0.00013948,2]
[401728067,1768349431501,-500.0,0.00013948,2]
[401728068,1768349431511,-500.0,0.00013948,2]
[401728069,1768349431520,-500.0,0.00013948,2]
[401728070,1768349431529,-500.0,0.00013948,2]
[401728071,1768349431539,-500.0,0.00013948,2]
[401728073,1768349431548,-500.0,0.00013948,2]
[401728075,1768349431557,-500.0,0.00013948,2]
[401728077,1768349431567,-500.0,0.00013948,2]
[401728078,1768349431576,-500.0,0.00013948,2]
[401728079,1768349431586,-500.0,0.00013948,2]
[401728080,1768349431595,-500.0,0.00013948,2]
[401728081,1768349431604,-500.0,0.00013948,2]
[401728082,1768349431614,-27.4051495,0.00013948,2]
[401728084,1768349431625,-472.5948505,0.00013948,2]
[401728086,1768349431634,-190.11088155,0.00013948,2]
[401728097,1768349431853,-309.88911845,0.00013948,2]
[401728098,1768349431862,-500.0,0.00013948,2]
[401728100,1768349431872,-315475.12429258,0.00013949,2]
[401728103,1768349431884,-31077.48849433,0.00013949,2]
[401728105,1768349431896,-407.74984699,0.00013949,2]
[401728108,1768349431919,-931.89,0.00013949,2]
[401728110,1768349431931,-461.17361602,0.00013949,2]
[401728113,1768349431942,-230661.29169519,0.00013949,2]
[401728115,1768349431953,-18932.17010588,0.00013949,2]
[401728117,1768349431964,-115853.837711,0.00013949,2]
[401728119,1768349431974,-1254.41808677,0.00013949,2]
[401728121,1768349431986,-332.89563354,0.00013949,2]
[401728157,1768349437764,-11313.7992,0.00013949,2]
[401728158,1768349437775,-315.87554765,0.00013949,2]
[401728159,1768349437785,-440.85154156,0.00013949,2]
[401728160,1768349437797,-1364.22985899,0.00013949,2]
[401728161,1768349437818,-3025.20253785,0.00013949,2]
[401728234,1768349439707,-941.97922699,0.00013949,2]
[401728250,1768349439872,-602.6552592,0.00013949,2]
[401728252,1768349439883,-8092.70988006,0.00013949,2]
[401728254,1768349439894,-160679.53254318,0.00013949,2]
[401728256,1768349439903,-2500.0,0.0001395,2]
[401728258,1768349439913,-166.5238076,0.00014023,2]
[401728260,1768349439922,-151.0,0.00014042,2]
[401728262,1768349439932,-500.0,0.00014042,2]
[401728264,1768349439941,-231.99159826,0.00014042,2]
[401728266,1768349439951,-509.39630906,0.00014049,2]
[401728268,1768349439960,-2893.44,0.00014049,2]
[401728269,1768349439970,-164.278,0.00014049,2]
[401728271,1768349439979,-429.6164184,0.00014049,2]
[401728273,1768349439989,-500.0,0.00014049,2]
[401728275,1768349440001,-500.0,0.00014049,2]
[401728277,1768349440010,-568.66331461,0.00014049,2]
[401728278,1768349440020,-500.0,0.00014049,2]
[401728279,1768349440030,-317.53883731,0.00014049,2]
[401728280,1768349440039,-506.04921746,0.00014049,2]
[401728281,1768349440048,-4009.30413762,0.000143,2]
[401728283,1768349440057,-3769.81210916,0.000143,2]
[401728284,1768349440066,-4784.16,0.00014523,2]
[401728285,1768349440078,-4009.30413762,0.0001475,2]
[401728287,1768349440087,-3769.81210916,0.0001475,2]
[401728288,1768349440096,-323.88,0.00015088,2]
[401728289,1768349440105,-153.52,0.00015088,2]
[401728290,1768349440115,-999.0,0.00015088,3]
[401728291,1768349440123,-216.11,0.00015127,2]
[401728292,1768349440133,-4009.30413762,0.000152,2]
[401728293,1768349440142,-173.59963859,0.000152,2]
[401728294,1768349440152,-3769.81210916,0.000152,2]
[401728296,1768349440161,-150.0,0.00015216,2]
[401728297,1768349440170,-1000.0,0.00015218,2]
[401728298,1768349440180,-195.0,0.00015267,2]
[401728299,1768349440189,-500.0,0.00015317,2]
[401728300,1768349440198,-269.02017408,0.00015317,2]
[401728301,1768349440207,-500.0,0.00015317,2]
[401728302,1768349440216,-500.0,0.00015317,2]
[401728303,1768349440225,-500.0,0.00015317,2]
[401728304,1768349440234,-505.19604421,0.00015317,2]
[401728305,1768349440243,-166.5238076,0.00015467,2]
[401728306,1768349440252,-4009.30413762,0.0001565,2]
[401728307,1768349440262,-151.0,0.00015781,2]
[401728308,1768349440271,-151.0,0.00015781,2]
[401728309,1768349440281,-151.0,0.00015788,2]
[401728310,1768349440291,-151.0,0.00015788,2]
[401728311,1768349440300,-151.0,0.00015794,2]
[401728312,1768349440310,-151.0,0.00015794,2]
[401728313,1768349440320,-500.0,0.00015873,2]
[401728314,1768349440329,-500.0,0.00015873,2]
[401728315,1768349440338,-2171.0,0.000159,2]
[401728316,1768349440347,-4009.30413762,0.000161,2]
[401728317,1768349440356,-10000.0,0.00016338,2]
[401728318,1768349440365,-587.0,0.00016384,2]
[401728319,1768349440375,-1000.0,0.00016421,2]
[401728320,1768349440385,-195.02385717,0.00016421,2]
[401728321,1768349440394,-177.16737328,0.00016428,2]
[401728322,1768349440403,-500.0,0.00016438,2]
[401728323,1768349440413,-500.0,0.00016438,2]
[401728324,1768349440422,-151.0,0.00016438,2]
[401728325,1768349440432,-500.0,0.00016438,2]
[401728326,1768349440442,-500.0,0.00016438,2]
[401728327,1768349440451,-283.069766,0.00016438,2]
[401728328,1768349440460,-500.0,0.00016438,2]
[401728329,1768349440469,-500.0,0.00016438,2]
[401728330,1768349440478,-703.69,0.00016438,2]
[401728331,1768349440488,-606.67,0.00016438,2]
[401728332,1768349440497,-500.0,0.00016438,2]
[401728333,1768349440507,-500.0,0.00016438,2]
[401728334,1768349440517,-500.0,0.00016438,2]
[401728335,1768349440526,-500.0,0.00016438,2]
[401728336,1768349440536,-500.0,0.00016438,2]
[401728337,1768349440546,-500.0,0.00016438,2]
[401728338,1768349440555,-500.0,0.00016438,2]
[401728339,1768349440565,-500.0,0.00016438,2]
[401728340,1768349440574,-500.0,0.00016438,2]
[401728341,1768349440583,-500.0,0.00016438,2]
[401728342,1768349440593,-500.0,0.00016438,2]
[401728343,1768349440603,-500.0,0.00016438,2]
[401728344,1768349440612,-500.0,0.00016438,2]
[401728345,1768349440622,-500.0,0.00016438,2]
[401728346,1768349440631,-500.0,0.00016438,2]
[401728347,1768349440640,-500.0,0.00016438,2]
[401728348,1768349440650,-865.04,0.00016438,2]
[401728349,1768349440659,-500.0,0.00016438,2]
[401728350,1768349440668,-500.0,0.00016438,2]
[401728351,1768349440677,-500.0,0.00016438,2]
[401728352,1768349440687,-500.0,0.00016438,2]
[401728353,1768349440697,-529.09958917,0.00016438,2]
[401728354,1768349440706,-767.4,0.00016438,2]
[401728355,1768349440715,-500.0,0.00016438,2]
[401728356,1768349440725,-500.0,0.00016438,2]
[401728357,1768349440735,-500.0,0.00016438,2]
[401728358,1768349440744,-531.24,0.00016438,2]
[401728359,1768349440754,-500.0,0.00016438,2]
[401728360,1768349440763,-500.0,0.00016438,2]
[401728361,1768349440773,-500.0,0.00016438,2]
[401728362,1768349440782,-248.64945057,0.00016438,2]
[401728363,1768349440791,-718.56,0.00016438,2]
[401728364,1768349440800,-500.0,0.00016438,2]
[401728365,1768349440809,-500.0,0.00016438,2]
[401728366,1768349440818,-462.87878155,0.00016438,2]
[401728367,1768349440827,-500.0,0.00016438,2]
[401728368,1768349440837,-500.0,0.00016438,2]
[401728369,1768349440846,-500.0,0.00016438,2]
[401728370,1768349440855,-552.21728162,0.00016438,2]
[401728371,1768349440866,-789.39,0.00016438,2]
[401728372,1768349440876,-500.0,0.00016438,2]
[401728373,1768349440885,-500.0,0.00016438,2]
[401728374,1768349440894,-487.62935261,0.00016438,2]
[401728375,1768349440903,-507.33713919,0.00016438,2]
[401728376,1768349440912,-500.0,0.00016438,2]
[401728377,1768349440922,-430.10710746,0.00016438,2]
[401728378,1768349440931,-500.0,0.00016438,2]
[401728379,1768349440940,-500.0,0.00016438,2]
[401728380,1768349440950,-1671.94,0.00016438,2]
[401728381,1768349440959,-500.0,0.00016438,2]
[401728382,1768349440968,-500.0,0.00016438,2]
[401728383,1768349440978,-500.0,0.00016438,2]
[401728384,1768349440988,-500.0,0.00016438,2]
[401728385,1768349440998,-890.39,0.00016438,2]
[401728386,1768349441007,-500.0,0.00016438,2]
[401728387,1768349441016,-500.0,0.00016438,2]
[401728388,1768349441026,-500.0,0.00016438,2]
[401728389,1768349441035,-500.0,0.00016438,2]
[401728390,1768349441044,-500.0,0.00016438,2]
[401728391,1768349441054,-588.85,0.00016438,2]
[401728392,1768349441063,-500.0,0.00016438,2]
[401728393,1768349441074,-500.0,0.00016438,2]
[401728394,1768349441084,-222.44445604,0.00016438,2]
[401728395,1768349441094,-500.0,0.00016438,2]
[401728396,1768349441103,-500.0,0.00016438,2]
[401728397,1768349441112,-521.68,0.00016438,2]
[401728398,1768349441122,-500.0,0.00016438,2]
[401728399,1768349441132,-585.57368508,0.00016438,2]
[401728400,1768349441141,-500.0,0.00016438,2]
[401728401,1768349441151,-500.0,0.00016438,2]
[401728402,1768349441161,-428.15497649,0.00016438,2]
[401728403,1768349441170,-548.84,0.00016438,2]
[401728404,1768349441180,-500.0,0.00016438,2]
[401728405,1768349441189,-500.0,0.00016438,2]
[401728406,1768349441199,-500.0,0.00016438,2]
[401728407,1768349441208,-500.0,0.00016438,2]
[401728408,1768349441218,-300.0,0.00016438,2]
[401728409,1768349441227,-817.22,0.00016438,2]
[401728410,1768349441237,-500.0,0.00016438,2]
[401728411,1768349441247,-500.0,0.00016438,2]
[401728412,1768349441256,-500.0,0.00016438,2]
[401728413,1768349441266,-201.22657861,0.00016438,2]
[401728414,1768349441275,-500.0,0.00016438,2]
[401728415,1768349441284,-500.0,0.00016438,2]
[401728416,1768349441293,-427.12025421,0.00016438,2]
[401728417,1768349441302,-500.0,0.00016438,2]
[401728418,1768349441312,-500.0,0.00016438,2]
[401728419,1768349441321,-500.0,0.00016438,2]
[401728420,1768349441330,-500.0,0.00016438,2]
[401728421,1768349441340,-500.0,0.00016438,2]
[401728422,1768349441349,-500.0,0.00016438,2]
[401728423,1768349441359,-500.0,0.00016438,2]
[401728424,1768349441368,-500.0,0.00016438,2]
[401728425,1768349441378,-500.0,0.00016438,2]
[401728426,1768349441387,-527.05,0.00016438,2]
[401728427,1768349441396,-547.46,0.00016438,2]
[401728428,1768349441406,-500.0,0.00016438,2]
[401728429,1768349441415,-500.0,0.00016438,2]
[401728430,1768349441423,-500.0,0.00016438,2]
[401728431,1768349441435,-500.0,0.00016438,2]
[401728432,1768349441444,-500.0,0.00016438,2]
[401728433,1768349441453,-500.0,0.00016438,2]
[401728434,1768349441463,-312.41022227,0.00016438,2]
[401728435,1768349441472,-500.0,0.00016438,2]
[401728436,1768349441481,-500.0,0.00016438,2]
[401728437,1768349441491,-444.07498175,0.00016438,2]
[401728438,1768349441500,-500.0,0.00016438,2]
[401728439,1768349441509,-500.0,0.00016438,2]
[401728440,1768349441518,-500.0,0.00016438,2]
[401728441,1768349441527,-440.87852407,0.00016438,2]
[401728442,1768349441536,-500.0,0.00016438,2]
[401728443,1768349441546,-500.0,0.00016438,2]
[401728444,1768349441555,-500.0,0.00016438,2]
[401728445,1768349441564,-500.0,0.00016438,2]
[401728446,1768349441573,-500.0,0.00016438,2]
[401728447,1768349441583,-500.0,0.00016438,2]
[401728448,1768349441591,-735.02,0.00016438,2]
[401728449,1768349441601,-1063.06,0.00016438,2]
[401728450,1768349441610,-500.0,0.00016438,2]
[401728451,1768349441619,-500.0,0.00016438,2]
[401728452,1768349441628,-500.0,0.00016438,2]
[401728453,1768349441638,-524.64,0.00016438,2]
[401728454,1768349441647,-500.0,0.00016438,2]
[401728455,1768349441656,-500.0,0.00016438,2]
[401728456,1768349441666,-500.0,0.00016438,2]
[401728457,1768349441675,-500.0,0.00016438,2]
[401728458,1768349441686,-500.0,0.00016438,2]
[401728459,1768349441695,-539.75334101,0.00016438,2]
[401728460,1768349441704,-500.0,0.00016438,2]
[401728461,1768349441945,-514.11,0.00016438,2]
[401728462,1768349441954,-207.66242423,0.00016438,2]
[401728463,1768349441963,-1325.73,0.00016438,2]
[401728464,1768349441972,-500.0,0.00016438,2]
[401728465,1768349441981,-500.0,0.00016438,2]
[401728466,1768349441991,-500.0,0.00016438,2]
[401728467,1768349442002,-500.0,0.00016438,2]
[401728468,1768349442011,-500.0,0.00016438,2]
[401728469,1768349442021,-1623.89,0.00016438,2]
[401728470,1768349442030,-500.0,0.00016438,2]
[401728471,1768349442039,-460.43510057,0.00016438,2]
[401728472,1768349442051,-429.59373956,0.00016438,2]
[401728473,1768349442060,-500.0,0.00016438,2]
[401728474,1768349442069,-500.0,0.00016438,2]
[401728475,1768349442078,-916.54,0.00016438,2]
[401728476,1768349442087,-500.0,0.00016438,2]
[401728477,1768349442096,-714.82,0.00016438,2]
[401728478,1768349442105,-500.0,0.00016438,2]
[401728479,1768349442114,-500.0,0.00016438,2]
[401728480,1768349442123,-500.0,0.00016438,2]
[401728481,1768349442132,-500.0,0.00016438,2]
[401728482,1768349442141,-500.0,0.00016438,2]
[401728483,1768349442150,-500.0,0.00016438,2]
[401728484,1768349442159,-500.0,0.00016438,2]
[401728485,1768349442169,-500.0,0.00016438,2]
[401728486,1768349442178,-500.0,0.00016438,2]
[401728487,1768349442190,-500.0,0.00016438,2]
[401728488,1768349442199,-500.0,0.00016438,2]
[401728490,1768349442208,-500.0,0.00016438,2]
[401728491,1768349442217,-500.0,0.00016438,2]
[401728492,1768349442226,-500.0,0.00016438,2]
[401728493,1768349442235,-503.25806188,0.00016438,2]
[401728494,1768349442245,-500.0,0.00016438,2]
[401728495,1768349442254,-500.0,0.00016438,2]
[401728497,1768349442263,-500.0,0.00016438,2]
[401728499,1768349442272,-500.0,0.00016438,2]
[401728500,1768349442281,-500.0,0.00016438,2]
[401728501,1768349442290,-500.0,0.00016438,2]
[401728502,1768349442299,-500.0,0.00016438,2]
[401728503,1768349442308,-500.0,0.00016438,2]
[401728504,1768349442318,-792.13,0.00016438,2]
[401728505,1768349442327,-500.0,0.00016438,2]
[401728506,1768349442335,-519.43803997,0.00016438,2]
[401728507,1768349442345,-484.07500305,0.00016438,2]
[401728508,1768349442354,-500.0,0.00016438,2]
[401728509,1768349442363,-510.12949188,0.00016438,2]
[401728510,1768349442372,-500.0,0.00016438,2]
[401728511,1768349442381,-711.81,0.00016438,2]
[401728512,1768349442390,-500.0,0.00016438,2]
[401728513,1768349442399,-500.0,0.00016438,2]
[401728514,1768349442408,-500.0,0.00016438,2]
[401728515,1768349442417,-500.0,0.00016438,2]
[401728516,1768349442427,-500.0,0.00016438,2]
[401728517,1768349442437,-500.0,0.00016438,2]
[401728518,1768349442447,-500.0,0.00016438,2]
[401728519,1768349442456,-500.0,0.00016438,2]
[401728520,1768349442465,-500.0,0.00016438,2]
[401728521,1768349442475,-500.0,0.00016438,2]
[401728522,1768349442484,-500.0,0.00016438,2]
[401728523,1768349442494,-500.0,0.00016438,2]
[401728524,1768349442503,-500.0,0.00016438,2]
[401728525,1768349442512,-500.0,0.00016438,2]
[401728526,1768349442522,-500.0,0.00016438,2]
[401728527,1768349442531,-500.0,0.00016438,2]
[401728528,1768349442541,-500.0,0.00016438,2]
[401728529,1768349442550,-649.71871409,0.00016438,2]
[401728530,1768349442559,-500.0,0.00016438,2]
[401728531,1768349442567,-500.0,0.00016438,2]
[401728532,1768349442576,-500.0,0.00016438,2]
[401728533,1768349442586,-500.0,0.00016438,2]
[401728534,1768349442595,-594.59,0.00016438,2]
[401728535,1768349442604,-500.0,0.00016438,2]
[401728536,1768349442613,-500.0,0.00016438,2]
[401728537,1768349442622,-500.0,0.00016438,2]
[401728538,1768349442631,-500.0,0.00016438,2]
[401728539,1768349442640,-571.65,0.00016438,2]
[401728540,1768349442650,-500.0,0.00016438,2]
[401728541,1768349442659,-997.85,0.00016438,2]
[401728542,1768349442669,-500.0,0.00016438,2]
[401728543,1768349442678,-500.0,0.00016438,2]
[401728544,1768349442689,-500.0,0.00016438,2]
[401728545,1768349442698,-500.0,0.00016438,2]
[401728546,1768349442707,-646.25,0.00016438,2]
[401728547,1768349442716,-500.0,0.00016438,2]
[401728548,1768349442726,-500.0,0.00016438,2]
[401728549,1768349442735,-500.0,0.00016438,2]
[401728550,1768349442744,-500.0,0.00016438,2]
[401728551,1768349442753,-500.0,0.00016438,2]
[401728552,1768349442763,-500.0,0.00016438,2]
[401728553,1768349442772,-500.0,0.00016438,2]
[401728554,1768349442781,-500.0,0.00016438,2]
[401728555,1768349442790,-500.0,0.00016438,2]
[401728556,1768349442799,-500.0,0.00016438,2]
[401728557,1768349442808,-500.0,0.00016438,2]
[401728558,1768349442818,-500.0,0.00016438,2]
[401728559,1768349442827,-500.0,0.00016438,2]
[401728560,1768349442836,-500.0,0.00016438,2]
[401728561,1768349442845,-500.0,0.00016438,2]
[401728562,1768349442854,-500.0,0.00016438,2]
[401728563,1768349442863,-500.0,0.00016438,2]
[401728564,1768349442873,-804.51,0.00016438,2]
[401728565,1768349442882,-500.0,0.00016438,2]
[401728566,1768349442890,-285.66024818,0.00016438,2]
[401728567,1768349442899,-500.0,0.00016438,2]
[401728568,1768349442908,-500.0,0.00016438,2]
[401728569,1768349442917,-1029.17,0.00016438,2]
[401728570,1768349442926,-500.0,0.00016438,2]
[401728571,1768349442936,-5584.94,0.00016438,2]
[401728572,1768349442945,-500.0,0.00016438,2]
[401728573,1768349442953,-1004.2,0.00016438,2]
[401728574,1768349442963,-500.0,0.00016438,2]
[401728575,1768349442973,-500.0,0.00016438,2]
[401728576,1768349442982,-500.0,0.00016438,2]
[401728577,1768349442995,-500.0,0.00016438,2]
[401728578,1768349443004,-500.0,0.00016438,2]
[401728579,1768349443014,-500.0,0.00016438,2]
[401728580,1768349443023,-500.0,0.00016438,2]
[401728581,1768349443034,-500.0,0.00016438,2]
[401728582,1768349443043,-500.0,0.00016438,2]
[401728583,1768349443052,-500.0,0.00016438,2]
[401728584,1768349443062,-500.0,0.00016438,2]
[401728585,1768349443071,-500.0,0.00016438,2]
[401728586,1768349443083,-500.0,0.00016438,2]
[401728587,1768349443092,-500.0,0.00016438,2]
[401728588,1768349443102,-500.0,0.00016438,2]
[401728589,1768349443111,-452.99658698,0.00016438,2]
[401728590,1768349443121,-500.0,0.00016438,2]
[401728591,1768349443131,-343.89877246,0.00016438,2]
[401728592,1768349443140,-500.0,0.00016438,2]
[401728593,1768349443149,-500.0,0.00016438,2]
[401728594,1768349443159,-2374.33,0.00016438,2]
[401728595,1768349443167,-500.0,0.00016438,2]
[401728596,1768349443177,-3313.89,0.00016438,2]
[401728597,1768349443187,-541.38561951,0.00016438,2]
[401728598,1768349443196,-500.0,0.00016438,2]
[401728599,1768349443206,-500.0,0.00016438,2]
[401728600,1768349443215,-500.0,0.00016438,2]
[401728601,1768349443224,-500.0,0.00016438,2]
[401728602,1768349443233,-500.0,0.00016438,2]
[401728603,1768349443242,-2608.4,0.00016438,2]
[401728604,1768349443251,-500.0,0.00016438,2]
[401728605,1768349443260,-953.65,0.00016438,2]
[401728606,1768349443269,-500.0,0.00016438,2]
[401728607,1768349443278,-500.0,0.00016438,2]
[401728608,1768349443287,-1595.77,0.00016438,2]
[401728609,1768349443297,-500.0,0.00016438,2]
[401728610,1768349443306,-500.0,0.00016438,2]
[401728611,1768349443316,-500.0,0.00016438,2]
[401728612,1768349443325,-500.0,0.00016438,2]
[401728613,1768349443335,-487.81380488,0.00016438,2]
[401728614,1768349443344,-3647.87,0.00016438,2]
[401728615,1768349443354,-6020.15,0.00016438,2]
[401728616,1768349443365,-500.0,0.00016438,2]
[401728617,1768349443375,-1176.89445691,0.00016438,2]
[401728618,1768349443385,-1176.89445691,0.00016438,2]
[401728619,1768349443394,-1176.89445691,0.00016438,2]
[401728620,1768349443403,-1176.89445691,0.00016438,2]
[401728621,1768349443413,-1176.89445691,0.00016438,2]
[401728622,1768349443423,-1176.89445691,0.00016438,2]
[401728623,1768349443432,-1176.89445691,0.00016438,2]
[401728624,1768349443441,-1176.89445691,0.00016438,2]
[401728625,1768349443450,-1176.89445691,0.00016438,2]
[401728626,1768349443460,-1176.89445691,0.00016438,2]
[401728627,1768349443469,-1176.89445691,0.00016438,2]
[401728628,1768349443479,-1176.89445691,0.00016438,2]
[401728629,1768349443488,-1176.89445691,0.00016438,2]
[401728630,1768349443497,-1176.89445691,0.00016438,2]
[401728631,1768349443507,-1176.89445691,0.00016438,2]
[401728632,1768349443517,-1176.89445691,0.00016438,2]
[401728633,1768349443527,-1176.89445691,0.00016438,2]
[401728634,1768349443537,-1176.89445691,0.00016438,2]
[401728635,1768349443546,-1176.89445691,0.00016438,2]
[401728636,1768349443556,-1176.89445691,0.00016438,2]
[401728637,1768349443566,-1176.89445691,0.00016438,2]
[401728638,1768349443575,-1176.89445691,0.00016438,2]
[401728639,1768349443585,-1176.89445691,0.00016438,2]
[401728640,1768349443594,-1176.89445691,0.00016438,2]
[401728641,1768349443604,-1176.89445691,0.00016438,2]
[401728642,1768349443615,-1176.89445691,0.00016438,2]
[401728643,1768349443624,-1176.89445691,0.00016438,2]
[401728644,1768349443634,-1176.89445691,0.00016438,2]
[401728645,1768349443643,-1176.89445691,0.00016438,2]
[401728646,1768349443653,-1176.89445691,0.00016438,2]
[401728647,1768349443663,-1176.89445691,0.00016438,2]
[401728648,1768349443672,-1176.89445691,0.00016438,2]
[401728649,1768349443682,-1176.89445691,0.00016438,2]
[401728650,1768349443691,-1176.89445691,0.00016438,2]